[Event "Titled Tuesday Blitz April 18 Late 2023"]
[White "Gaehwiler, Gabriel"]
[Black "Sadhwani, Raunak"]
[WhiteFideId "1314530"]
[BlackFideId "35093487"]
[WhiteElo "2437"]
[BlackElo "2631"]
[Result "1-0"]
[Round "06"]
[TimeControl "180+2"]
[Date "2023.04.18"]
[WhiteClock "0:00:23"]
[BlackClock "0:00:08"]

1. d4 {[%clk 0:02:52]}  g6 {[%clk 0:03:00]} 2. Nf3 {[%clk 0:02:52]}  Bg7 {[%clk 0:03:00]} 3. c4 {[%clk 0:02:51]}  d6 {[%clk 0:03:01]} 4. g3 {[%clk 0:02:51]}  Nf6 {[%clk 0:02:58]} 5. Bg2 {[%clk 0:02:51]}  O-O {[%clk 0:02:58]} 6. O-O {[%clk 0:02:52]}  c6 {[%clk 0:02:57]} 7. Nc3 {[%clk 0:02:51]}  Bf5 {[%clk 0:02:58]} 8. Re1 {[%clk 0:02:50]}  Ne4 {[%clk 0:02:57]} 9. Bd2 {[%clk 0:02:47]}  Nxc3 {[%clk 0:02:38]} 10. Bxc3 {[%clk 0:02:48]}  Be4 {[%clk 0:02:39]} 11. Nd2 {[%clk 0:02:45]}  Bxg2 {[%clk 0:02:39]} 12. Kxg2 {[%clk 0:02:46]}  d5 {[%clk 0:02:35]} 13. Qb3 {[%clk 0:02:44]}  Qd7 {[%clk 0:02:31]} 14. Rad1 {[%clk 0:02:37]}  a5 {[%clk 0:02:21]} 15. e4 {[%clk 0:02:26]}  a4 {[%clk 0:02:17]} 16. Qc2 {[%clk 0:02:18]}  e6 {[%clk 0:02:15]} 17. h4 {[%clk 0:02:11]}  b5 {[%clk 0:02:12]} 18. b3 {[%clk 0:02:04]}  Na6 {[%clk 0:01:57]} 19. h5 {[%clk 0:02:00]}  Rac8 {[%clk 0:01:24]} 20. hxg6 {[%clk 0:01:55]}  fxg6 {[%clk 0:01:17]} 21. Nf3 {[%clk 0:01:53]}  axb3 {[%clk 0:00:44]} 22. axb3 {[%clk 0:01:52]}  Qf7 {[%clk 0:00:37]} 23. Ng5 {[%clk 0:01:45]}  Qf6 {[%clk 0:00:36]} 24. f4 {[%clk 0:01:44]}  h6 {[%clk 0:00:36]} 25. e5 {[%clk 0:01:24]}  Qe7 {[%clk 0:00:36]} 26. Qxg6 {[%clk 0:00:58]}  hxg5 {[%clk 0:00:35]} 27. Rh1 {[%clk 0:00:58]}  Qe8 {[%clk 0:00:26]} 28. Qh7+ {[%clk 0:00:56]}  Kf7 {[%clk 0:00:26]} 29. fxg5 {[%clk 0:00:54]}  Rg8 {[%clk 0:00:20]} 30. Ra1 {[%clk 0:00:38]}  Ra8 {[%clk 0:00:10]} 31. Rxa6 {[%clk 0:00:23]}  Rxa6 {[%clk 0:00:08]} 32. Bb4 {[%clk 0:00:23]}  Ra2+ {[%clk 0:00:08]} 33. Kf3 {[%clk 0:00:23]} 1-0


[Site "https://www.chess.com"]

[Event "Titled Tuesday Blitz April 18 Late 2023"]
[White "Djordjevic, Vuk"]
[Black "Svane, Frederik"]
[WhiteFideId "902098"]
[BlackFideId "12923044"]
[WhiteElo "2452"]
[BlackElo "2502"]
[Result "1-0"]
[Round "06"]
[TimeControl "180+2"]
[Date "2023.04.18"]
[WhiteClock "0:00:19"]
[BlackClock "0:00:14"]

1. d4 {[%clk 0:03:00]}  Nf6 {[%clk 0:02:58]} 2. Bg5 {[%clk 0:03:01]}  d5 {[%clk 0:02:56]} 3. Bxf6 {[%clk 0:03:00]}  exf6 {[%clk 0:02:56]} 4. e3 {[%clk 0:03:01]}  c5 {[%clk 0:02:52]} 5. Nc3 {[%clk 0:02:54]}  cxd4 {[%clk 0:02:42]} 6. Qxd4 {[%clk 0:02:54]}  Be6 {[%clk 0:02:43]} 7. Nh3 {[%clk 0:02:44]}  Nc6 {[%clk 0:02:42]} 8. Bb5 {[%clk 0:02:43]}  a6 {[%clk 0:02:38]} 9. Bxc6+ {[%clk 0:02:42]}  bxc6 {[%clk 0:02:39]} 10. Nf4 {[%clk 0:02:42]}  Rb8 {[%clk 0:02:36]} 11. Rb1 {[%clk 0:02:29]}  Bd6 {[%clk 0:02:33]} 12. a3 {[%clk 0:02:18]}  O-O {[%clk 0:02:27]} 13. O-O {[%clk 0:02:17]}  Bf5 {[%clk 0:02:27]} 14. Nd3 {[%clk 0:02:10]}  Qc7 {[%clk 0:02:24]} 15. h3 {[%clk 0:02:06]}  Rfe8 {[%clk 0:02:11]} 16. Rfc1 {[%clk 0:02:00]}  a5 {[%clk 0:02:11]} 17. b4 {[%clk 0:01:49]}  Qe7 {[%clk 0:01:57]} 18. bxa5 {[%clk 0:01:39]}  Bxa3 {[%clk 0:01:55]} 19. Rxb8 {[%clk 0:01:30]}  Rxb8 {[%clk 0:01:56]} 20. Rb1 {[%clk 0:01:24]}  Ra8 {[%clk 0:01:52]} 21. Qb6 {[%clk 0:01:17]}  h6 {[%clk 0:01:45]} 22. Qxc6 {[%clk 0:00:41]}  Rc8 {[%clk 0:01:44]} 23. Qxd5 {[%clk 0:00:34]}  Rxc3 {[%clk 0:01:42]} 24. Qxf5 {[%clk 0:00:33]}  g6 {[%clk 0:01:38]} 25. Qf4 {[%clk 0:00:21]}  Rxc2 {[%clk 0:01:26]} 26. Qxh6 {[%clk 0:00:21]}  Bd6 {[%clk 0:01:23]} 27. Qh4 {[%clk 0:00:20]}  Ra2 {[%clk 0:01:23]} 28. Qc4 {[%clk 0:00:18]}  Rxa5 {[%clk 0:01:21]} 29. Nf4 {[%clk 0:00:18]}  Kg7 {[%clk 0:01:19]} 30. Rd1 {[%clk 0:00:16]}  Rc5 {[%clk 0:01:14]} 31. Qd4 {[%clk 0:00:14]}  Be5 {[%clk 0:01:15]} 32. Qa4 {[%clk 0:00:09]}  Qc7 {[%clk 0:01:14]} 33. Nd3 {[%clk 0:00:08]}  Rd5 {[%clk 0:01:13]} 34. Nxe5 {[%clk 0:00:07]}  Rxe5 {[%clk 0:01:13]} 35. Qd4 {[%clk 0:00:07]}  Rc5 {[%clk 0:01:13]} 36. g3 {[%clk 0:00:07]}  Rc2 {[%clk 0:01:13]} 37. Qe4 {[%clk 0:00:06]}  Qc3 {[%clk 0:01:12]} 38. Kg2 {[%clk 0:00:05]}  Qb2 {[%clk 0:01:12]} 39. Qf3 {[%clk 0:00:05]}  Qb5 {[%clk 0:01:13]} 40. h4 {[%clk 0:00:05]}  Qc5 {[%clk 0:01:13]} 41. Rd5 {[%clk 0:00:05]}  Qc4 {[%clk 0:01:10]} 42. h5 {[%clk 0:00:05]}  Rc1 {[%clk 0:00:59]} 43. Rd1 {[%clk 0:00:05]}  Rc2 {[%clk 0:00:55]} 44. Rh1 {[%clk 0:00:04]}  Qc6 {[%clk 0:00:39]} 45. e4 {[%clk 0:00:05]}  Rc4 {[%clk 0:00:35]} 46. Rh4 {[%clk 0:00:05]}  Qe6 {[%clk 0:00:28]} 47. hxg6 {[%clk 0:00:03]}  fxg6 {[%clk 0:00:29]} 48. Rg4 {[%clk 0:00:01]}  Rc7 {[%clk 0:00:20]} 49. Rf4 {[%clk 0:00:01]}  Re7 {[%clk 0:00:20]} 50. Qd3 {[%clk 0:00:01]}  Rd7 {[%clk 0:00:21]} 51. Qe3 {[%clk 0:00:01]}  Re7 {[%clk 0:00:20]} 52. Qf3 {[%clk 0:00:02]}  Rd7 {[%clk 0:00:20]} 53. Rg4 {[%clk 0:00:02]}  Re7 {[%clk 0:00:15]} 54. Qf5 {[%clk 0:00:02]}  Qf7 {[%clk 0:00:15]} 55. Qf4 {[%clk 0:00:02]}  Re5 {[%clk 0:00:15]} 56. Qf3 {[%clk 0:00:03]}  Qe6 {[%clk 0:00:16]} 57. Rf4 {[%clk 0:00:03]}  g5 {[%clk 0:00:13]} 58. Rf5 {[%clk 0:00:02]}  Rxe4 {[%clk 0:00:09]} 59. Rxf6 {[%clk 0:00:03]}  Qxf6 {[%clk 0:00:10]} 60. Qxe4 {[%clk 0:00:03]}  Kh6 {[%clk 0:00:10]} 61. Qe3 {[%clk 0:00:04]}  Kg6 {[%clk 0:00:09]} 62. Qe4+ {[%clk 0:00:04]}  Kh6 {[%clk 0:00:10]} 63. Kf1 {[%clk 0:00:05]}  Qa6+ {[%clk 0:00:10]} 64. Ke1 {[%clk 0:00:05]}  Qa5+ {[%clk 0:00:10]} 65. Ke2 {[%clk 0:00:05]}  Qa6+ {[%clk 0:00:10]} 66. Ke3 {[%clk 0:00:05]}  Qb6+ {[%clk 0:00:10]} 67. Qd4 {[%clk 0:00:06]}  Qe6+ {[%clk 0:00:11]} 68. Kd3 {[%clk 0:00:05]}  Qf5+ {[%clk 0:00:11]} 69. Kc4 {[%clk 0:00:06]}  Qe6+ {[%clk 0:00:11]} 70. Kc5 {[%clk 0:00:04]}  Kh5 {[%clk 0:00:11]} 71. Kb4 {[%clk 0:00:03]}  Qe7+ {[%clk 0:00:11]} 72. Kc3 {[%clk 0:00:03]}  Qe6 {[%clk 0:00:12]} 73. Kd3 {[%clk 0:00:04]}  Kg6 {[%clk 0:00:12]} 74. Qe4+ {[%clk 0:00:04]}  Kf6 {[%clk 0:00:13]} 75. Qxe6+ {[%clk 0:00:04]}  Kxe6 {[%clk 0:00:13]} 76. Ke4 {[%clk 0:00:04]}  Kf6 {[%clk 0:00:14]} 77. g4 {[%clk 0:00:05]}  Ke6 {[%clk 0:00:14]} 78. f3 {[%clk 0:00:06]}  Kf6 {[%clk 0:00:14]} 79. Kd5 {[%clk 0:00:06]}  Kf7 {[%clk 0:00:10]} 80. Ke5 {[%clk 0:00:07]}  Kg6 {[%clk 0:00:11]} 81. Ke6 {[%clk 0:00:07]}  Kg7 {[%clk 0:00:11]} 82. Kf5 {[%clk 0:00:08]}  Kh6 {[%clk 0:00:12]} 83. Kf6 {[%clk 0:00:09]}  Kh7 {[%clk 0:00:13]} 84. Kxg5 {[%clk 0:00:10]}  Kg7 {[%clk 0:00:13]} 85. Kf5 {[%clk 0:00:10]}  Kf7 {[%clk 0:00:14]} 86. g5 {[%clk 0:00:11]}  Ke7 {[%clk 0:00:15]} 87. g6 {[%clk 0:00:12]}  Kd6 {[%clk 0:00:16]} 88. g7 {[%clk 0:00:12]}  Kc5 {[%clk 0:00:17]} 89. g8=Q {[%clk 0:00:13]}  Kd4 {[%clk 0:00:18]} 90. Qe8 {[%clk 0:00:13]}  Kd3 {[%clk 0:00:10]} 91. Qe4+ {[%clk 0:00:14]}  Kc3 {[%clk 0:00:11]} 92. Ke5 {[%clk 0:00:15]}  Kd2 {[%clk 0:00:12]} 93. Kd5 {[%clk 0:00:15]}  Kc1 {[%clk 0:00:12]} 94. f4 {[%clk 0:00:16]}  Kb2 {[%clk 0:00:13]} 95. Qf3 {[%clk 0:00:17]}  Ka1 {[%clk 0:00:14]} 96. Kc4 {[%clk 0:00:17]}  Ka2 {[%clk 0:00:14]} 97. Qe2+ {[%clk 0:00:17]}  Ka3 {[%clk 0:00:13]} 98. Qf2 {[%clk 0:00:18]}  Ka4 {[%clk 0:00:14]} 99. Qa7# {[%clk 0:00:19]} 1-0


[Site "https://www.chess.com"]

[Event "Titled Tuesday Blitz April 18 Late 2023"]
[White "Horvath, Dominik"]
[Black "Kramnik, Vladimir"]
[WhiteFideId "1642561"]
[BlackFideId "4101588"]
[WhiteElo "2407"]
[BlackElo "2712"]
[Result "0-1"]
[Round "06"]
[TimeControl "180+2"]
[Date "2023.04.18"]
[WhiteClock "0:00:18"]
[BlackClock "0:01:32"]

1. d4 {[%clk 0:02:53]}  Nf6 {[%clk 0:02:58]} 2. c4 {[%clk 0:02:51]}  e6 {[%clk 0:02:58]} 3. Nc3 {[%clk 0:02:47]}  d5 {[%clk 0:02:57]} 4. Nf3 {[%clk 0:02:46]}  c6 {[%clk 0:02:56]} 5. e3 {[%clk 0:02:35]}  Nbd7 {[%clk 0:02:56]} 6. Qc2 {[%clk 0:02:35]}  Bd6 {[%clk 0:02:55]} 7. Bd3 {[%clk 0:02:35]}  O-O {[%clk 0:02:54]} 8. O-O {[%clk 0:02:35]}  dxc4 {[%clk 0:02:54]} 9. Bxc4 {[%clk 0:02:36]}  b5 {[%clk 0:02:54]} 10. Be2 {[%clk 0:02:37]}  Bb7 {[%clk 0:02:49]} 11. e4 {[%clk 0:02:37]}  e5 {[%clk 0:02:49]} 12. dxe5 {[%clk 0:02:37]}  Nxe5 {[%clk 0:02:48]} 13. Nd4 {[%clk 0:02:37]}  Neg4 {[%clk 0:02:45]} 14. g3 {[%clk 0:02:37]}  Bc5 {[%clk 0:02:37]} 15. Nf5 {[%clk 0:02:34]}  Nxf2 {[%clk 0:02:23]} 16. Rxf2 {[%clk 0:02:32]}  Bxf2+ {[%clk 0:02:20]} 17. Kxf2 {[%clk 0:02:32]}  b4 {[%clk 0:02:21]} 18. e5 {[%clk 0:01:43]}  bxc3 {[%clk 0:02:07]} 19. exf6 {[%clk 0:01:43]}  Qxf6 {[%clk 0:02:05]} 20. Bf3 {[%clk 0:01:11]}  Rad8 {[%clk 0:01:42]} 21. bxc3 {[%clk 0:01:09]}  Ba6 {[%clk 0:01:38]} 22. Ne3 {[%clk 0:00:23]}  Bd3 {[%clk 0:01:34]} 23. Qb3 {[%clk 0:00:18]}  Be4 {[%clk 0:01:32]} 0-1


[Site "https://www.chess.com"]

[Event "Titled Tuesday Blitz April 18 Late 2023"]
[White "Bilych, Olexiy"]
[Black "Sjugirov, Sanan"]
[WhiteFideId "14156504"]
[BlackFideId "4189302"]
[WhiteElo "2320"]
[BlackElo "2569"]
[Result "1-0"]
[Round "06"]
[TimeControl "180+2"]
[Date "2023.04.18"]
[WhiteClock "0:00:14"]
[BlackClock "0:00:18"]

1. d4 {[%clk 0:03:00]}  Nf6 {[%clk 0:02:59]} 2. c4 {[%clk 0:03:01]}  e6 {[%clk 0:03:00]} 3. Nf3 {[%clk 0:03:01]}  Bb4+ {[%clk 0:03:00]} 4. Nbd2 {[%clk 0:03:00]}  b6 {[%clk 0:02:59]} 5. a3 {[%clk 0:02:59]}  Bxd2+ {[%clk 0:02:59]} 6. Bxd2 {[%clk 0:02:56]}  Bb7 {[%clk 0:03:00]} 7. Bg5 {[%clk 0:02:56]}  d6 {[%clk 0:02:56]} 8. e3 {[%clk 0:02:55]}  Nbd7 {[%clk 0:02:56]} 9. Be2 {[%clk 0:02:56]}  h6 {[%clk 0:02:56]} 10. Bh4 {[%clk 0:02:56]}  g5 {[%clk 0:02:55]} 11. Bg3 {[%clk 0:02:56]}  Ne4 {[%clk 0:02:55]} 12. O-O {[%clk 0:02:32]}  Qe7 {[%clk 0:02:53]} 13. Nd2 {[%clk 0:02:31]}  Nxg3 {[%clk 0:02:37]} 14. fxg3 {[%clk 0:02:27]}  O-O {[%clk 0:02:31]} 15. Bd3 {[%clk 0:02:21]}  f5 {[%clk 0:02:24]} 16. g4 {[%clk 0:02:05]}  Nf6 {[%clk 0:01:34]} 17. gxf5 {[%clk 0:01:49]}  exf5 {[%clk 0:01:35]} 18. Qe2 {[%clk 0:01:49]}  Ng4 {[%clk 0:01:21]} 19. Rae1 {[%clk 0:01:40]}  Rae8 {[%clk 0:01:21]} 20. Rxf5 {[%clk 0:01:07]}  Rxf5 {[%clk 0:01:20]} 21. Bxf5 {[%clk 0:01:08]}  Qxe3+ {[%clk 0:01:20]} 22. Qxe3 {[%clk 0:01:04]}  Rxe3 {[%clk 0:01:21]} 23. Be6+ {[%clk 0:00:53]}  Kg7 {[%clk 0:01:20]} 24. Rxe3 {[%clk 0:00:52]}  Nxe3 {[%clk 0:01:21]} 25. d5 {[%clk 0:00:43]}  b5 {[%clk 0:01:03]} 26. cxb5 {[%clk 0:00:31]}  Nxd5 {[%clk 0:01:01]} 27. Bxd5 {[%clk 0:00:17]}  Bxd5 {[%clk 0:01:00]} 28. Kf2 {[%clk 0:00:17]}  Kf6 {[%clk 0:01:01]} 29. g3 {[%clk 0:00:18]}  Ke5 {[%clk 0:01:00]} 30. Ke3 {[%clk 0:00:18]}  Be6 {[%clk 0:00:55]} 31. Nf3+ {[%clk 0:00:12]}  Kd5 {[%clk 0:00:55]} 32. Nd4 {[%clk 0:00:11]}  Bd7 {[%clk 0:00:55]} 33. Kd3 {[%clk 0:00:08]}  Be8 {[%clk 0:00:33]} 34. b4 {[%clk 0:00:06]}  Bg6+ {[%clk 0:00:33]} 35. Kc3 {[%clk 0:00:06]}  Be8 {[%clk 0:00:29]} 36. a4 {[%clk 0:00:06]}  Bd7 {[%clk 0:00:24]} 37. Kd3 {[%clk 0:00:06]}  Be8 {[%clk 0:00:20]} 38. Kc3 {[%clk 0:00:06]}  h5 {[%clk 0:00:18]} 39. h4 {[%clk 0:00:05]}  gxh4 {[%clk 0:00:15]} 40. gxh4 {[%clk 0:00:06]}  Ke5 {[%clk 0:00:13]} 41. Nc6+ {[%clk 0:00:02]}  Bxc6 {[%clk 0:00:13]} 42. bxc6 {[%clk 0:00:03]}  Kd5 {[%clk 0:00:13]} 43. b5 {[%clk 0:00:03]}  Kc5 {[%clk 0:00:14]} 44. Kb3 {[%clk 0:00:04]}  a6 {[%clk 0:00:13]} 45. bxa6 {[%clk 0:00:03]}  Kxc6 {[%clk 0:00:13]} 46. a5 {[%clk 0:00:04]}  d5 {[%clk 0:00:08]} 47. Kb4 {[%clk 0:00:04]}  d4 {[%clk 0:00:08]} 48. Kc4 {[%clk 0:00:05]}  d3 {[%clk 0:00:09]} 49. Kxd3 {[%clk 0:00:05]}  Kb5 {[%clk 0:00:10]} 50. a7 {[%clk 0:00:05]}  Kb4 {[%clk 0:00:11]} 51. a8=Q {[%clk 0:00:06]}  c5 {[%clk 0:00:12]} 52. Qd5 {[%clk 0:00:07]}  c4+ {[%clk 0:00:12]} 53. Qxc4+ {[%clk 0:00:07]}  Kxa5 {[%clk 0:00:13]} 54. Qd5+ {[%clk 0:00:08]}  Kb6 {[%clk 0:00:14]} 55. Qxh5 {[%clk 0:00:09]}  Ka7 {[%clk 0:00:14]} 56. Qg6 {[%clk 0:00:10]}  Kb8 {[%clk 0:00:15]} 57. h5 {[%clk 0:00:10]}  Ka7 {[%clk 0:00:16]} 58. h6 {[%clk 0:00:11]}  Kb8 {[%clk 0:00:17]} 59. h7 {[%clk 0:00:12]}  Ka7 {[%clk 0:00:18]} 60. h8=Q {[%clk 0:00:13]}  Kb7 {[%clk 0:00:18]} 61. Qhh7+ {[%clk 0:00:14]}  Kb8 {[%clk 0:00:18]} 62. Qgg8# {[%clk 0:00:14]} 1-0


[Site "https://www.chess.com"]

[Event "Titled Tuesday Blitz April 18 Late 2023"]
[White "Manukyan, Sargis A."]
[Black "Ibrahimli, Murad"]
[WhiteFideId "13303970"]
[BlackFideId "13410229"]
[WhiteElo "2187"]
[BlackElo "2364"]
[Result "1-0"]
[Round "06"]
[TimeControl "180+2"]
[Date "2023.04.18"]
[WhiteClock "0:01:40"]
[BlackClock "0:01:32"]

1. d4 {[%clk 0:03:00]}  Nf6 {[%clk 0:02:59]} 2. c4 {[%clk 0:03:00]}  e6 {[%clk 0:02:58]} 3. Nc3 {[%clk 0:03:00]}  d5 {[%clk 0:02:57]} 4. cxd5 {[%clk 0:02:58]}  exd5 {[%clk 0:02:58]} 5. Bg5 {[%clk 0:02:59]}  Be7 {[%clk 0:02:58]} 6. e3 {[%clk 0:02:59]}  O-O {[%clk 0:02:56]} 7. Bd3 {[%clk 0:02:59]}  Re8 {[%clk 0:02:53]} 8. Nf3 {[%clk 0:02:58]}  Bg4 {[%clk 0:02:46]} 9. Qc2 {[%clk 0:02:57]}  h6 {[%clk 0:02:44]} 10. Bf4 {[%clk 0:02:55]}  Bxf3 {[%clk 0:02:41]} 11. gxf3 {[%clk 0:02:55]}  c5 {[%clk 0:02:41]} 12. Rg1 {[%clk 0:02:43]}  Kh8 {[%clk 0:02:34]} 13. O-O-O {[%clk 0:02:42]}  cxd4 {[%clk 0:02:26]} 14. exd4 {[%clk 0:02:43]}  Nc6 {[%clk 0:02:27]} 15. Qd2 {[%clk 0:02:36]}  Ng8 {[%clk 0:02:13]} 16. Bb1 {[%clk 0:02:33]}  Bd6 {[%clk 0:01:58]} 17. Be3 {[%clk 0:02:21]}  Qf6 {[%clk 0:01:58]} 18. Qd3 {[%clk 0:02:13]}  g6 {[%clk 0:01:58]} 19. Nxd5 {[%clk 0:02:13]}  Qxf3 {[%clk 0:01:53]} 20. Rxg6 {[%clk 0:02:03]}  Qxd5 {[%clk 0:01:32]} 21. Rxd6 {[%clk 0:01:40]} 1-0


[Site "https://www.chess.com"]

[Event "Titled Tuesday Blitz April 18 Late 2023"]
[White "Popovic, Dusan"]
[Black "Leiva, Gianmarco"]
[WhiteFideId "927031"]
[BlackFideId "3804399"]
[WhiteElo "2573"]
[BlackElo "2345"]
[Result "1/2-1/2"]
[Round "06"]
[TimeControl "180+2"]
[Date "2023.04.18"]
[WhiteClock "0:00:11"]
[BlackClock "0:00:07"]

1. g3 {[%clk 0:02:55]}  Nf6 {[%clk 0:03:00]} 2. Bg2 {[%clk 0:02:55]}  c6 {[%clk 0:02:59]} 3. d3 {[%clk 0:02:54]}  d5 {[%clk 0:02:53]} 4. Nf3 {[%clk 0:02:55]}  Bg4 {[%clk 0:02:50]} 5. O-O {[%clk 0:02:54]}  Nbd7 {[%clk 0:02:43]} 6. Nbd2 {[%clk 0:02:53]}  e5 {[%clk 0:02:42]} 7. h3 {[%clk 0:02:53]}  Bh5 {[%clk 0:02:42]} 8. e4 {[%clk 0:02:53]}  dxe4 {[%clk 0:02:41]} 9. dxe4 {[%clk 0:02:54]}  Qc7 {[%clk 0:02:40]} 10. Qe1 {[%clk 0:02:49]}  Bc5 {[%clk 0:02:22]} 11. Nb3 {[%clk 0:02:48]}  Bb6 {[%clk 0:02:17]} 12. a4 {[%clk 0:02:48]}  a5 {[%clk 0:02:12]} 13. Be3 {[%clk 0:02:44]}  O-O {[%clk 0:02:03]} 14. Nfd2 {[%clk 0:02:42]}  Bxe3 {[%clk 0:01:49]} 15. Qxe3 {[%clk 0:02:42]}  Qb6 {[%clk 0:01:49]} 16. Qxb6 {[%clk 0:02:41]}  Nxb6 {[%clk 0:01:50]} 17. Nc5 {[%clk 0:02:41]}  Rab8 {[%clk 0:01:47]} 18. f3 {[%clk 0:02:37]}  Rfd8 {[%clk 0:01:45]} 19. Rfd1 {[%clk 0:02:35]}  Nfd7 {[%clk 0:01:42]} 20. Ndb3 {[%clk 0:02:32]}  Nxc5 {[%clk 0:01:35]} 21. Nxc5 {[%clk 0:02:31]}  Nc4 {[%clk 0:01:21]} 22. Nxb7 {[%clk 0:02:06]}  Rxd1+ {[%clk 0:01:14]} 23. Rxd1 {[%clk 0:02:07]}  Nxb2 {[%clk 0:01:15]} 24. Rd6 {[%clk 0:01:36]}  f6 {[%clk 0:01:07]} 25. Nxa5 {[%clk 0:01:30]}  Nxa4 {[%clk 0:01:05]} 26. Nxc6 {[%clk 0:01:23]}  Rb2 {[%clk 0:00:55]} 27. Ne7+ {[%clk 0:01:17]}  Kf8 {[%clk 0:00:53]} 28. Nf5 {[%clk 0:01:16]}  Nc5 {[%clk 0:00:49]} 29. Rd8+ {[%clk 0:01:11]}  Kf7 {[%clk 0:00:49]} 30. Rc8 {[%clk 0:01:05]}  Rxc2 {[%clk 0:00:42]} 31. Rc7+ {[%clk 0:01:00]}  Kf8 {[%clk 0:00:42]} 32. Nxg7 {[%clk 0:00:56]}  Bf7 {[%clk 0:00:21]} 33. Nf5 {[%clk 0:00:56]}  Rc1+ {[%clk 0:00:20]} 34. Kh2 {[%clk 0:00:56]}  Nd3 {[%clk 0:00:15]} 35. Rd7 {[%clk 0:00:50]}  Ne1 {[%clk 0:00:09]} 36. Rd2 {[%clk 0:00:38]}  Rc2 {[%clk 0:00:07]} 37. Rxc2 {[%clk 0:00:33]}  Nxc2 {[%clk 0:00:08]} 38. Bf1 {[%clk 0:00:31]}  Be6 {[%clk 0:00:08]} 39. Nh4 {[%clk 0:00:28]}  Nd4 {[%clk 0:00:07]} 40. Kg2 {[%clk 0:00:26]}  Kg7 {[%clk 0:00:05]} 41. Kf2 {[%clk 0:00:24]}  Kh6 {[%clk 0:00:05]} 42. f4 {[%clk 0:00:17]}  Kh5 {[%clk 0:00:05]} 43. Nf3 {[%clk 0:00:16]}  Nxf3 {[%clk 0:00:02]} 44. Kxf3 {[%clk 0:00:17]}  Kg6 {[%clk 0:00:03]} 45. h4 {[%clk 0:00:15]}  Bd7 {[%clk 0:00:02]} 46. Be2 {[%clk 0:00:15]}  h5 {[%clk 0:00:02]} 47. Ke3 {[%clk 0:00:15]}  Bc6 {[%clk 0:00:02]} 48. Bd1 {[%clk 0:00:14]}  Bb7 {[%clk 0:00:02]} 49. Bf3 {[%clk 0:00:13]}  Bc6 {[%clk 0:00:02]} 50. Kd3 {[%clk 0:00:13]}  Kh6 {[%clk 0:00:03]} 51. fxe5 {[%clk 0:00:10]}  fxe5 {[%clk 0:00:03]} 52. Kc4 {[%clk 0:00:11]}  Kg6 {[%clk 0:00:03]} 53. Kc5 {[%clk 0:00:12]}  Be8 {[%clk 0:00:03]} 54. Kd6 {[%clk 0:00:12]}  Kf6 {[%clk 0:00:04]} 55. g4 {[%clk 0:00:07]}  hxg4 {[%clk 0:00:04]} 56. Bxg4 {[%clk 0:00:08]}  Bg6 {[%clk 0:00:04]} 57. Bf3 {[%clk 0:00:09]}  Be8 {[%clk 0:00:03]} 58. Kd5 {[%clk 0:00:07]}  Bf7+ {[%clk 0:00:03]} 59. Kc5 {[%clk 0:00:07]}  Bg6 {[%clk 0:00:04]} 60. Kc4 {[%clk 0:00:06]}  Bf7+ {[%clk 0:00:04]} 61. Kd3 {[%clk 0:00:07]}  Be6 {[%clk 0:00:04]} 62. Ke3 {[%clk 0:00:07]}  Bd7 {[%clk 0:00:04]} 63. Bh5 {[%clk 0:00:07]}  Be6 {[%clk 0:00:04]} 64. Kf3 {[%clk 0:00:06]}  Bb3 {[%clk 0:00:04]} 65. Be8 {[%clk 0:00:05]}  Bd1+ {[%clk 0:00:04]} 66. Kg3 {[%clk 0:00:05]}  Bc2 {[%clk 0:00:05]} 67. Bc6 {[%clk 0:00:05]}  Bd1 {[%clk 0:00:05]} 68. Kf2 {[%clk 0:00:03]}  Bh5 {[%clk 0:00:05]} 69. Ke3 {[%clk 0:00:03]}  Bg4 {[%clk 0:00:06]} 70. Be8 {[%clk 0:00:03]}  Bd1 {[%clk 0:00:06]} 71. Bd7 {[%clk 0:00:04]}  Ke7 {[%clk 0:00:06]} 72. Bh3 {[%clk 0:00:03]}  Kf6 {[%clk 0:00:06]} 73. Bg2 {[%clk 0:00:03]}  Bb3 {[%clk 0:00:05]} 74. Bf3 {[%clk 0:00:04]}  Be6 {[%clk 0:00:05]} 75. Kf2 {[%clk 0:00:05]}  Bc4 {[%clk 0:00:04]} 76. Kg3 {[%clk 0:00:05]}  Be6 {[%clk 0:00:04]} 77. Bg4 {[%clk 0:00:05]}  Bb3 {[%clk 0:00:03]} 78. Bf5 {[%clk 0:00:06]}  Bd1 {[%clk 0:00:04]} 79. Kh3 {[%clk 0:00:06]}  Be2 {[%clk 0:00:03]} 80. Kg2 {[%clk 0:00:06]}  Bd1 {[%clk 0:00:03]} 81. Kf2 {[%clk 0:00:06]}  Bc2 {[%clk 0:00:03]} 82. Ke3 {[%clk 0:00:07]}  Bd1 {[%clk 0:00:04]} 83. Kd2 {[%clk 0:00:07]}  Bf3 {[%clk 0:00:04]} 84. Kc3 {[%clk 0:00:07]}  Be2 {[%clk 0:00:04]} 85. Kd2 {[%clk 0:00:06]}  Bb5 {[%clk 0:00:04]} 86. Ke3 {[%clk 0:00:07]}  Ba4 {[%clk 0:00:05]} 87. Bg4 {[%clk 0:00:07]}  Bc2 {[%clk 0:00:05]} 88. Be2 {[%clk 0:00:06]}  Ba4 {[%clk 0:00:05]} 89. Kf3 {[%clk 0:00:07]}  Bc6 {[%clk 0:00:05]} 90. Bd3 {[%clk 0:00:07]}  Bd7 {[%clk 0:00:05]} 91. Kg3 {[%clk 0:00:07]}  Be6 {[%clk 0:00:06]} 92. Be2 {[%clk 0:00:07]}  Bd7 {[%clk 0:00:06]} 93. Bg4 {[%clk 0:00:07]}  Ba4 {[%clk 0:00:05]} 94. Bf5 {[%clk 0:00:08]}  Bd1 {[%clk 0:00:06]} 95. Kf2 {[%clk 0:00:07]}  Bc2 {[%clk 0:00:06]} 96. Ke3 {[%clk 0:00:08]}  Bb3 {[%clk 0:00:06]} 97. Kd2 {[%clk 0:00:09]}  Ba4 {[%clk 0:00:06]} 98. Kc3 {[%clk 0:00:09]}  Bb5 {[%clk 0:00:07]} 99. Kb4 {[%clk 0:00:10]}  Bd3 {[%clk 0:00:07]} 100. Kc5 {[%clk 0:00:10]}  Bc2 {[%clk 0:00:08]} 101. Kd6 {[%clk 0:00:11]}  Bd1 {[%clk 0:00:08]} 102. Kd7 {[%clk 0:00:11]}  Ba4+ {[%clk 0:00:09]} 103. Kd8 {[%clk 0:00:12]}  Bb5 {[%clk 0:00:09]} 104. Bd7 {[%clk 0:00:11]}  Bd3 {[%clk 0:00:09]} 105. Bc6 {[%clk 0:00:12]}  Kg6 {[%clk 0:00:07]} 106. Be8+ {[%clk 0:00:11]} 1/2-1/2


[Site "https://www.chess.com"]